Cogmind - Beta 15 *** ADVENTURER MODE // 2025.09.12 @ 16:42:46 Player: Vidali Result: Self-destructed Performance ------------- Evolutions (2) 1000 Regions Visited (5) 1000 Robots Destroyed (1) 5 Value Destroyed (55) 55 Prototype IDs (23) 460 Alien Tech Used (0) 0 Bonus (570) 570 TOTAL SCORE: 3090 Bonus ------- Pacifist 270 Aligned with FarCom 300 Cogmind --------- Core Integrity 476/550 Matter 270/300 Energy 15/100 System Corruption 0% Temperature Cool (12) Movement Core (100) Ox1 Location -8/Materials Parts ------- > --- POWER (1) -------- (None) > --- PROPULSION (2) --- Improved Titanium Leg Improved Titanium Leg > --- UTILITY (6) ------ (None) > --- WEAPON (2) ------- Heavy Particle Cannon > --- INVENTORY (5) ---- Improved Titanium Leg Advanced Visual Processing Unit Terrain Scan Processor Skeleton Box Grenade Launcher Peak State ------------ > --- POWER ------------ (None) > --- PROPULSION ------- Improved Titanium Leg Improved Titanium Leg > --- UTILITY ---------- (None) > --- WEAPON ----------- Heavy Particle Cannon > --- INVENTORY -------- Improved Titanium Leg Advanced Visual Processing Unit Terrain Scan Processor Skeleton Box Grenade Launcher [Rating: 12] Favorites ----------- Power None Propulsion Improved Titanium Leg Leg Improved Titanium Leg Utility None Weapon Heavy Particle Cannon Energy Cannon Heavy Particle Cannon Build | -11 -10 -10 -10 -9 -8 ------- Run | Yrd Mat Min Exi Min Mat Slots Evolved 4 | . . . . . 4 Power . | . . . . . . Propulsion . | . . . . . . Utility 4 | . . . . . 4 Weapon . | . . . . . . Parts Attached 3 | . . . . . 3 Power . | . . . . . . Engine . | . . . . . . Core . | . . . . . . Reactor . | . . . . . . Propulsion 2 | . . . . . 2 Treads . | . . . . . . Leg 2 | . . . . . 2 Wheel . | . . . . . . Hover . | . . . . . . Flight . | . . . . . . Utility . | . . . . . . Device . | . . . . . . Storage . | . . . . . . Processor . | . . . . . . Hackware . | . . . . . . Protection . | . . . . . . Artifact . | . . . . . . Weapon 1 | . . . . . 1 Energy Gun . | . . . . . . Energy Cannon 1 | . . . . . 1 Ballistic Gun . | . . . . . . Ballistic Cannon . | . . . . . . Launcher . | . . . . . . Special Weapon . | . . . . . . Impact Weapon . | . . . . . . Slashing Weapon . | . . . . . . Piercing Weapon . | . . . . . . Special Melee Weapon . | . . . . . . Unidentified Prototypes . | . . . . . . Parts Lost . | . . . . . . Power . | . . . . . . Propulsion . | . . . . . . Utility . | . . . . . . Weapon . | . . . . . . Highest Loss Streak . | . . . . . . To Critical Strikes . | . . . . . . Average Backups 1 | . . 1 1 2 3 Power . | . . . . . . Propulsion . | . . . . . . Utility . | . . . . . . Weapon . | . . 1 1 1 1 Tool/Special . | . . . . . . Unused Backups 5 | . . . . . 5 Power . | . . . . . . Propulsion 1 | . . . . . 1 Utility 2 | . . . . . 2 Weapon 1 | . . . . . 1 Tool/Special 1 | . . . . . 1 Average Slot Usage (%) 4 | . . . . . 13 Leg 3 | . . . . . 11 Peak Build Rating 12 | . . . . . 12 Average Rating 2 | . . . . . 6 On Entrance . | . . . . . . Naked Turns 414 | . 108 52 133 69 52 Heaviest Build 6 | . . . . . 6 Greatest Support 40 | 3 3 3 3 3 40 Greatest Overweight (x) 1 | . . . . . 1 Average Overweight (x) . | . . . . . . Largest Inventory Capacity 5 | 5 5 5 5 5 5 Average Capacity 5 | 5 5 5 5 5 5 Most Carried 5 | . 1 1 2 2 5 Average Carried 1 | . . 1 1 2 3 Final Capacity 5 | 5 5 5 5 5 5 Final Carried 5 | . 1 1 2 2 5 Class Distribution -------------------- 100% | Mutant Dominant Class ---------------- Mutant | -10/Materials Mutant | -10/Mines Mutant | -10/Exiles Mutant | -9/Mines Mutant | -8/Materials Resources | -11 -10 -10 -10 -9 -8 ----------- Run | Yrd Mat Min Exi Min Mat Matter Collected 200 | 200 . . . . . Remotely . | . . . . . . Salvage Created 41 | . . . . . 41 Parts 2 | . . . . . 2 Haulers Intercepted . | . . . . . . Recyclers Shooed . | . . . . . . Parts Field Recycled . | . . . . . . Retrieved Matter . | . . . . . . Parts Self-Destructed . | . . . . . . Prevented . | . . . . . . Kills | -11 -10 -10 -10 -9 -8 ------- Run | Yrd Mat Min Exi Min Mat Combat Hostiles Destroyed 1 | . . . . . 1 Cannons 1 | . . . . . 1 Classes Destroyed 1 | . . . . . 1 Hunter 1 | . . . . . 1 Best Kill Streak 1 | . . . . . 1 Combat Bots Only 1 | . . . . . 1 Max Kills in Single Turn 1 | . . . . . 1 Gunslinging . | . . . . . . Exploded . | . . . . . . Melee . | . . . . . . Uniques/NPCs Destroyed . | . . . . . . Combat | -11 -10 -10 -10 -9 -8 -------- Run | Yrd Mat Min Exi Min Mat Hostile Shots Fired 41 | . . 1 . . 40 Missed 16 | . . 1 . . 15 Hits 25 | . . . . . 25 Projectile 25 | . . . . . 25 Damage Taken 214 | . . . . . 214 Core 74 | . . . . . 74 Absorbed by Shields . | . . . . . . Ignored by Resistances 62 | . . . . . 62 Core Remaining (%) 100 | 100 . . . 100 . Volleys Fired 9 | . . . . . 9 Largest 1 | . . . . . 1 Hottest 75 | . . . . . 75 Shots Fired 9 | . . . . . 9 Gun . | . . . . . . Cannon 9 | . . . . . 9 Launcher . | . . . . . . Special . | . . . . . . Kinetic . | . . . . . . Thermal 9 | . . . . . 9 Explosive . | . . . . . . Electromagnetic . | . . . . . . Robot Hit Streak 9 | . . . . . 9 Robot Miss Streak . | . . . . . . Penetration Max . | . . . . . . Secondary Targets . | . . . . . . Shots Hit Robots 9 | . . . . . 9 Core Hits 2 | . . . . . 2 Critical Kills . | . . . . . . Critical Parts Destroyed . | . . . . . . Critical Strikes . | . . . . . . Melee Attacks . | . . . . . . Impact . | . . . . . . Slashing . | . . . . . . Piercing . | . . . . . . Sneak Attacks . | . . . . . . Combat Hostiles . | . . . . . . Follow-up Attacks . | . . . . . . Damage Inflicted 225 | . . . . . 225 Guns . | . . . . . . Cannons 225 | . . . . . 225 Explosions . | . . . . . . Melee . | . . . . . . Ramming . | . . . . . . Kinetic . | . . . . . . Thermal 225 | . . . . . 225 Explosive . | . . . . . . Electromagnetic . | . . . . . . Impact . | . . . . . . Slashing . | . . . . . . Piercing . | . . . . . . Highest Corruption . | . . . . . . Average Corruption . | . . . . . . Corruption Purged . | . . . . . . Corruption Blocked . | . . . . . . Overload Shots . | . . . . . . Overflow Damage . | . . . . . . Projectiles . | . . . . . . Explosions . | . . . . . . Melee . | . . . . . . Knockbacks . | . . . . . . Impact . | . . . . . . Kinetic . | . . . . . . Secondary . | . . . . . . Self-Inflicted Damage . | . . . . . . Shots . | . . . . . . Rammed . | . . . . . . Targets Rammed . | . . . . . . Kicked . | . . . . . . Crushed . | . . . . . . Highest Temperature 57 | . . . . . 57 Average Temperature 22 | . . . . . 22 Received Heat Transfer 27 | . . . . . 27 Siege Activations . | . . . . . . Martial Activations . | . . . . . . Shielding Activations . | . . . . . . Robots Disrupted . | . . . . . . Combat Hostiles . | . . . . . . Robots Corrupted . | . . . . . . Combat Hostiles . | . . . . . . Parts Fried . | . . . . . . Impact Corruptions . | . . . . . . Robots Melted . | . . . . . . Combat Hostiles . | . . . . . . Parts Melted . | . . . . . . Heat Transferred 333 | . . . . . 333 Parts Sabotaged . | . . . . . . Parts Stolen . | . . . . . . Parts Stripped . | . . . . . . Power Chain Reactions . | . . . . . . Alert | -11 -10 -10 -10 -9 -8 ------- Run | Yrd Mat Min Exi Min Mat Maximum Alert Level . | . . . . . . Low Security (%) 100 | 100 100 100 . 100 100 Level 1 . | . . . . . . Level 2 . | . . . . . . Level 3 . | . . . . . . Level 4 . | . . . . . . Level 5 . | . . . . . . High Security . | . . . . . . Max Security . | . . . . . . Peak Influence 35 | . 13 . . . 35 Initial . | . . . . . . Average 2 | . 2 . . . 5 Influence Increases 62 | . 13 . . . 49 Destroy 0b10 Robot/C 20 | . . . . . 20 Destroy Leader 10 | . . . . . 10 Successful Hack 17 | . 13 . . . 4 Lose Combat Pursuer 15 | . . . . . 15 Influence Decreases 37 | . 13 . . . 24 Time Decay 37 | . 13 . . . 24 Squads Dispatched . | . . . . . . Investigation . | . . . . . . Extermination . | . . . . . . Reinforcement . | . . . . . . Assault . | . . . . . . Garrison . | . . . . . . Intercept . | . . . . . . Searches Triggered . | . . . . . . Construction Impeded . | . . . . . . Haulers Reinforced . | . . . . . . Active Scanning Responses . | . . . . . . Cargo Convoy Interrupts . | . . . . . . Stealth | -11 -10 -10 -10 -9 -8 --------- Run | Yrd Mat Min Exi Min Mat Distress Signals 1 | . . . . . 1 Communications Jammed . | . . . . . . Distress Signals . | . . . . . . Times Spotted 8 | . 1 3 . . 4 Peak Tracking Total 5 | . 1 3 . . 5 Tactical Retreats 1 | . . . . . 1 Traps | -11 -10 -10 -10 -9 -8 ------- Run | Yrd Mat Min Exi Min Mat Traps Triggered . | . . . . . . Indirectly . | . . . . . . Trap Hack Attempts . | . . . . . . Triggered . | . . . . . . Disarmed . | . . . . . . Reprogrammed . | . . . . . . Reused . | . . . . . . Traps Extracted . | . . . . . . Installed . | . . . . . . Triggered . | . . . . . . Machines | -11 -10 -10 -10 -9 -8 ---------- Run | Yrd Mat Min Exi Min Mat Machines Disabled . | . . . . . . Max in Single Turn . | . . . . . . Machines Repaired . | . . . . . . Machines Dismantled . | . . . . . . Machines Sabotaged . | . . . . . . Overloaded Fab Kills . | . . . . . . Hacking | -11 -10 -10 -10 -9 -8 --------- Run | Yrd Mat Min Exi Min Mat Machines Accessed 4 | . 2 . 1 . 1 Terminals 3 | . 2 . . . 1 Fabricators . | . . . . . . Repair Stations . | . . . . . . Recycling Units . | . . . . . . Scanalyzers . | . . . . . . Garrison Access . | . . . . . . Total Hacks 10 | . 7 . 1 . 2 Successful 8 | . 5 . 1 . 2 Failed 2 | . 2 . . . . Catastrophic 1 | . 1 . . . . Database Lockouts . | . . . . . . Manual 8 | . 6 . 1 . 1 Terminals 9 | . 7 . . . 2 Fabricators . | . . . . . . Repair Stations . | . . . . . . Recycling Units . | . . . . . . Scanalyzers . | . . . . . . Garrison Access . | . . . . . . Terminal Hacks 5 | . 3 . 1 . 1 Record 2 | . 1 . . . 1 Branch Access Points 1 | . 1 . . . . Emergency Access Points 1 | . 1 . . . . Proto ID Catalog 1 | . . . 1 . . Fabricator Hacks . | . . . . . . Repair Station Hacks . | . . . . . . Recycling Unit Hacks . | . . . . . . Scanalyzer . | . . . . . . Garrison Access Hacks . | . . . . . . Unauthorized Hacks 3 | . 2 . . . 1 Terminals 3 | . 2 . . . 1 Botnet 3 | . 2 . . . 1 Fabricators . | . . . . . . Repair Stations . | . . . . . . Recycling Units . | . . . . . . Scanalyzers . | . . . . . . Garrison Access . | . . . . . . Data Cores Recovered . | . . . . . . Used . | . . . . . . Hacking Detections 3 | . 2 . . . 1 Full Trace Events . | . . . . . . Feedback Events . | . . . . . . Feedback Blocked . | . . . . . . Robot Schematics Acquired . | . . . . . . Robots Built . | . . . . . . Authchips . | . . . . . . Time . | . . . . . . Total Robot Build Rating . | . . . . . . Part Schematics Acquired . | . . . . . . Parts Built . | . . . . . . Authchips . | . . . . . . Time . | . . . . . . Total Part Build Rating . | . . . . . . Parts Repaired . | . . . . . . Time . | . . . . . . Parts Recycled . | . . . . . . Recycled Matter . | . . . . . . Retrieved Matter . | . . . . . . Retrieved Components . | . . . . . . Parts Scanalyzed . | . . . . . . Part Schematics Acquired . | . . . . . . Parts Damaged . | . . . . . . Bothacking | -11 -10 -10 -10 -9 -8 ------------ Run | Yrd Mat Min Exi Min Mat Used RIF Installer . | . . . . . . Robots Hacked . | . . . . . . Non-combat . | . . . . . . Combat . | . . . . . . Robot Hacks Applied . | . . . . . . Relay Couplers Released . | . . . . . . Fabnet Peak Effective % . | . . . . . . Robots Rewired . | . . . . . . Allies Hacked . | . . . . . . Hacks Repelled . | . . . . . . Allies | -11 -10 -10 -10 -9 -8 -------- Run | Yrd Mat Min Exi Min Mat Total Allies 3 | . . 3 . . . Largest Group 3 | . . 3 3 . . Highest-Rated Group 40 | . . 40 40 . . Highest-Rated Ally 16 | . . 16 16 . . Total Orders . | . . . . . . Ally Attacks . | . . . . . . Total Damage . | . . . . . . Kills . | . . . . . . Allies Corrupted . | . . . . . . Allies Melted . | . . . . . . Intel | -11 -10 -10 -10 -9 -8 ------- Run | Yrd Mat Min Exi Min Mat Active Infowar (turns) . | . . . . . . Robot Analysis Total . | . . . . . . Derelict Logs Recovered 3 | . . 2 . 1 . Drone Launches . | . . . . . . Drone Recoveries . | . . . . . . Exploration | -11 -10 -10 -10 -9 -8 ------------- Run | Yrd Mat Min Exi Min Mat Turns Passed 551 | 15 108 52 133 69 174 Spaces Moved 726 | 29 148 50 264 79 156 Core 667 | 29 148 50 264 79 97 Treads . | . . . . . . Legs 59 | . . . . . 59 Wheels . | . . . . . . Hover . | . . . . . . Flight . | . . . . . . Fastest Speed 50 | 50 50 50 50 50 50 Average Speed 56 | 50 50 50 50 50 80 Slowest Speed 130 | 50 50 50 50 50 130 Overloaded Moves . | . . . . . . Propulsion Burnouts . | . . . . . . Robots Hopped . | . . . . . . Potential Cave-ins . | . . . . . . Cave-ins Triggered . | . . . . . . Exploration Rate (%) 24 | 3 30 13 60 19 21 Regions Visited 5 Branch Regions 3 Pre-discovered Areas . | . . . . . . Known Exits Taken 1 | . 1 . . . . Unknown Exits Taken 4 | 1 . 1 1 1 . Scrap Searched 2 | . . . . 2 . Spaces Dug . | . . . . . . Terrain Destroyed . | . . . . . . Melee . | . . . . . . Projectile . | . . . . . . AOE . | . . . . . . Terrain Rammed . | . . . . . . Walls Destroyed . | . . . . . . Machines Disabled . | . . . . . . Actions | -11 -10 -10 -10 -9 -8 --------- Run | Yrd Mat Min Exi Min Mat Total 850 | 28 181 76 264 107 194 Wait 110 | . 33 27 . 29 21 Move 721 | 28 147 49 263 78 156 Hop . | . . . . . . Pick Up 7 | . 1 . 1 . 5 Fast Attach 1 | . . . . . 1 Attach 2 | . . . . . 2 Detach . | . . . . . . Swap . | . . . . . . Drop . | . . . . . . Fire 9 | . . . . . 9 Melee . | . . . . . . Ram . | . . . . . . Kick . | . . . . . . Crush . | . . . . . . Escape Stasis . | . . . . . . Rewire . | . . . . . . Trap . | . . . . . . Miscellaneous . | . . . . . . Route ------- -11/Scrapyard -10/Materials -10/Mines (discovered 2 exits: [*Mat] / *Exi) -10/Exiles (discovered 2 exits: [*Min x2]) -9/Mines -8/Materials (discovered 1 exit: [*Sto]) History --------- Turn | Location | Event 4 | -11/Scrapyard | Discovered new exit (range 15) 16 | -11/Scrapyard | Entered Materials 38 | -10/Materials | Identified exit to Mines 106 | -10/Materials | Met 8R-AWN 124 | -10/Materials | Entered Mines 124 | -10/Mines | Discovered new exit (range 8) 125 | -10/Mines | Followed 8R-AWN into the Mines 132 | -10/Mines | Learned Materials emergency access door positions 133 | -10/Mines | Assisted by bots powering up and referring to "LRC-V3" 138 | -10/Mines | Learned Materials garrison access intel 155 | -10/Mines | Discovered new exit (range 5) 176 | -10/Mines | Entered Exiles 176 | -10/Exiles | Accompanied by 3 allies 189 | -10/Exiles | Discovered new exit (range 14) 199 | -10/Exiles | Welcomed by 8R-AWN 207 | -10/Exiles | Met EX-HEX 221 | -10/Exiles | Met EX-BIN 248 | -10/Exiles | Aligned with FarCom system 248 | -10/Exiles | Given EX-Vault access code 260 | -10/Exiles | Opened EX-Vault 263 | -10/Exiles | Found Skeleton Box 273 | -10/Exiles | Warned to stay clear of 0b10 Research branches 288 | -10/Exiles | Met EX-DEC 305 | -10/Exiles | Build established: Mutant 305 | -10/Exiles | Discovered new exit (range 10) 309 | -10/Exiles | Left Exiles lab with Skeleton Box 309 | -10/Exiles | Entered Mines 361 | -9/Mines | Discovered new exit (range 12) 375 | -9/Mines | Learned Materials emergency access door positions 378 | -9/Mines | Entered Materials 378 | -8/Materials | Evolved 4 slots: Utility x4 378 | -8/Materials | Discovered new exit (range 8) 380 | -8/Materials | Loaded intel: 1 garrison access location 552 | -8/Materials | Self-destructed Last Messages --------------- analysis aimed at long-term improvements, eventually TF Nodes could be expanded to include more immediate detection and response efforts in support of nearby garrisons. 00465_ Terminal disabled. 00490_ Acquired Adv. Visual Processing Unit. 00494_ Slug penetrates Wall. 00495_ K-01 Serf collects debris. 00495_ Acquired Terrain Scan Processor. 00496_ K-01 Serf collects debris. 00506_ Slug penetrates Wall. 00506_ K-01 Serf collects debris. 00515_ Acquired Hvy. Particle Cannon. 00528_ Penetrated by Slug. 00529_ H-55 Commando destroyed. 00530_ Atomic Centrifuge disabled. 00537_ Penetrated by Slug. 00539_ R-06 Scavenger collects Carbon-fiber Leg. 00544_ Penetrated by Slug. 00550_ Destroyed Lgt. Nuclear Core. Map ----- +----------------------------------------------------+ | ########### ## ????? | | #?????????# ## #??? | | ######/######+###########?????????# ## #??? | | ????# #?] ???????????######## ## #??? | | ????# ## """ #?????????# ## #??? | | ????# ## """ #?????????# ## #??? | | ????# ## """ #?????????# #########??? | | ????# ## #?????????# ##########????????? | | ????# "## [ #?????????# # #????????? | | ????# T###+############### # #????????? | | ????# #???????# """ + # """ #????????? | | ????# #???????# "R" """ # # """"" #????????? | | ????####+#??????Y# " " """ + + """"" #????????? | | ???????# #???????# """ # # """"" #????????? | | ######## ##+###### # # """ #????????? | | = / / # # #????????? | | ####### # + + #????????? | | ??????????# # ##############????????? | | ??????????# ###########?????????????????????? | | ??????????# ##??????????????????????????????? | | ????####### #??????????????????????????????? | | ????+ +?????#########????????????????? | | ????#### #?????# """ """ #??????????????? | | ???????# ####### ##?????# "" """ #??????????????? | | ???????# # #? #??????# "" """ #??????????????? | | ???????# # ##?#??????#@ #??????????????? | | ##### # ##w???????# ! #??????????????? | | + ##/######## ! #??????????????? | | ####### # # #??????????????? | | ?????????# # #h Y ] #??????????????? | | ?????????# # #/#/#######??????????????? | | ?????????# / + #???????????? | | ?????????# # # #???????????? | | ?????????###### ###### """ +???????????? | | ??????????????# #?????? "T"?o??????+?????? | | ??????????????# #???????? ??????????????? | | ??????????????###########????????? ?????????????? | | ?????????????????????????????????????????????????? | | ?????????????????????????????????????????????????? | | ?????????????????????????????????????????????????? | | ?????????????????????????????????????????????????? | | ?????????????????????????????????????????????????? | | ?????????????????????????????????????????????????? | | ?????????????????????????????????????????????????? | | ?????????????????????????????????????????????????? | | ?????????????????????????????????????????????????? | | ?????????????????????????????????????????????????? | | ?????????????????????????????????????????""??????? | | ????????????????????????????????????????"G???????? | | ?????????????????????????????????????????""??????? | +----------------------------------------------------+ Best States ------------- Heat Dissipation 31 Energy Generation 5 Energy Capacity 100 Matter Stores 300 Matter Capacity 300 Sight Range 16 Terrain Scan Density 10 Resistance: KI 20 Resistance: TH 20 Resistance: EX 20 Resistance: EM 20 Resistance: I 20 Resistance: S 20 Resistance: P 20 Evasion (%) 55 Offensive Hacking 10 Item Schematics ----------------- None Robot Schematics ------------------ None Fabricated ------------ Nothing Repaired ---------- Nothing Alien Tech Used ----------------- None Achievements -------------- None Challenges ------------ None Game ------ Seed StealthCompanionHarness Manual? 0 Play Time 00:28:29 Cumulative 266.2 hours Start 2025.09.12 @ 15:16:50 End 2025.09.12 @ 16:42:46 Sessions 1 Manual Loads 0 Difficulty Adventurer Special Mode None Game No. 156 Rogue 94 Adventurer 62 Explorer 0 Win Type - Total 13 Types 10/0/0/3/0/0/0/0/0/0 Lore% 68 Gallery% 68 Achievement% 65 Wizard Run 0 Options --------- Layout 2 ASCII 0 Keyboard 0 Movement Mouse Keybinds 0 Fullscreen 1 Font 32/SmallcapsGlow Map View 50x44 Zoom Use 0% Tactical HUD 1 Map Filters NONE Filters NONE Steam 1 RUN: 0bff96c3-9f10-4080-890c-faf4bae1a07e